bitfinex/quotes_ETHUSD_20240924
["timestamp","ask_amount","ask_price","bid_price","bid_amount"]
[1727216223707,0.78267444,2672.6,2672.5,4.52251]
[1727216224767,0.78267444,2672.6,2672.4,4.74194]
[1727216224968,0.97818936,2672.6,2672.5,3.74181]
[1727216225203,0.78267444,2672.6,2672.5,3.74181]
[1727216225404,0.78267444,2672.6,2672.4,4.74194]
[1727216225581,0.78267444,2672.6,2672.4,1.0]
[1727216225792,0.55,2672.5,2672.4,1.0]
[1727216225994,5.24281959,2672.5,2672.4,1.0]
[1727216226821,6.13026511,2672.5,2672.4,1.0]
[1727216227113,4.29251,2672.0,2671.9,0.00111901]
[1727216227322,5.907899,2672.0,2671.9,0.00111901]
[1727216228300,9.76125699,2672.0,2671.9,0.00111901]
[1727216228509,9.76125699,2672.0,2671.1,0.0389482]
[1727216228510,4.55553,2671.2,2671.1,0.0389482]
[1727216228710,5.10553,2671.2,2671.1,0.0389482]
[1727216229017,9.36821325,2671.2,2671.1,0.0389482]
[1727216230705,9.36821325,2671.2,2670.3,0.0389482]
[1727216230706,3.74417,2670.9,2670.3,0.0389482]
[1727216230883,0.55,2670.6,2670.3,0.0389482]
[1727216231085,8.07256247,2670.4,2670.3,0.0389482]
[1727216231314,3.29972836,2670.4,2670.3,0.0389482]
[1727216231491,0.55,2670.6,2670.3,0.0389482]
[1727216231924,0.55,2670.6,2670.3,3.7837782]
[1727216232082,0.78260469,2670.8,2670.3,0.0389482]
[1727216233003,4.54764,2670.9,2670.3,3.7838382]
[1727216233205,0.53302447,2670.8,2670.3,3.7838382]
[1727216234392,0.07554552,2670.7,2670.3,3.7838382]
[1727216234622,0.53302447,2670.8,2670.3,0.0389482]
[1727216234918,4.29437,2670.7,2670.3,0.0389482]
[1727216235128,0.55,2670.7,2670.3,0.0389482]
[1727216235318,0.53302447,2670.8,2670.3,0.0389482]
[1727216235520,0.50806345,2670.7,2670.3,3.7837382]
[1727216235827,0.50806345,2670.7,2670.3,0.0389482]
[1727216236332,4.54761,2670.9,2670.5,3.74458]
[1727216236333,0.8035,2670.9,2670.5,3.74458]
[1727216236492,0.8035,2670.9,2670.6,3.74444]
[1727216236692,0.8035,2670.9,2670.5,3.74458]
[1727216236907,3.74384,2671.1,2670.5,3.74458]
[1727216237095,2.06618325,2671.2,2670.7,3.74425]
[1727216237315,4.52588469,2671.5,2670.9,3.74397]
[1727216237496,3.74328,2671.5,2670.9,3.74397]
[1727216237697,3.74357,2671.3,2670.8,3.74418]
[1727216237903,0.07554552,2671.2,2670.5,3.74456]
[1727216238130,0.07554552,2671.2,2670.4,0.7517]
[1727216238131,0.07554552,2671.2,2670.6,3.74434]
[1727216238430,3.74338,2671.4,2670.8,3.74411]
[1727216238636,3.74334,2671.5,2670.8,3.74411]
[1727216238789,3.74385,2671.1,2670.4,0.7517]
[1727216238992,0.55,2671.2,2670.5,3.7446]
[1727216238993,3.744,2671.0,2670.5,3.7446]
[1727216239301,3.81964552,2670.9,2670.4,0.7517]
[1727216239529,3.74436,2670.7,2670.3,0.0389482]
[1727216239829,7.48878,2670.7,2670.3,0.0389482]
[1727216240030,3.74436,2670.7,2670.3,0.0389482]
[1727216240386,3.82003552,2670.6,2670.3,0.0389482]
[1727216240618,0.5418774,2670.5,2670.3,0.0389482]
[1727216241200,3.82029552,2670.4,2670.3,0.0389482]
[1727216241397,4.37029552,2670.4,2670.3,0.0389482]
[1727216241628,5.09825,2670.4,2670.3,0.0389482]
[1727216242691,8.17379552,2670.4,2670.3,0.0389482]
[1727216243013,8.17379552,2670.4,2669.5,0.0389482]
[1727216243014,0.8035,2669.7,2669.5,0.0389482]
[1727216243221,3.74536,2670.0,2669.5,0.0389482]
[1727216243222,3.7454,2670.0,2669.5,0.0389482]
[1727216243614,3.74567,2669.8,2669.5,0.0389482]
[1727216243815,0.07554552,2669.7,2669.5,0.0389482]
[1727216244334,0.07554552,2669.8,2669.5,0.0389482]
[1727216244495,0.8026,2669.8,2669.5,0.0389482]
[1727216244698,0.55,2669.7,2669.5,0.0389482]
[1727216244888,4.29581,2669.7,2669.5,0.0389482]
[1727216245117,5.68385652,2669.6,2669.5,0.0389482]
[1727216245393,5.608311,2669.6,2669.5,0.0389482]
[1727216245797,0.55,2669.3,2668.7,3.7859882]
[1727216246024,4.2963,2669.3,2668.7,3.7859882]
[1727216246208,3.74647,2669.2,2668.7,0.0389482]
[1727216246594,1.354255,2669.3,2668.7,3.7860382]
[1727216247066,1.354255,2669.3,2668.7,3.7859882]
[1727216247207,5.100585,2669.3,2668.7,3.74704]
[1727216247395,0.804255,2669.3,2668.7,3.74704]
[1727216247594,0.55,2669.4,2668.7,3.74704]
[1727216247795,1.312441,2669.6,2668.9,3.74685]
[1727216248131,5.06128125,2669.9,2669.0,0.7593]
[1727216248443,3.74521,2670.1,2669.0,0.7593]
[1727216248444,3.74521,2670.1,2669.6,3.74586]
[1727216249001,0.8026,2670.2,2669.7,3.74571]
[1727216249442,3.74509,2670.2,2669.6,0.7593]
[1727216249628,3.77781247,2670.2,2669.4,3.74614]
[1727216249798,3.74547,2669.9,2669.4,3.74614]
[1727216249998,0.07554552,2669.8,2669.3,0.7593]
[1727216250232,0.07554552,2669.7,2669.2,3.74632]
[1727216250536,3.74582,2669.7,2669.1,3.74656]
[1727216250736,4.20818155,2669.7,2669.1,3.74656]
[1727216252030,4.20818155,2669.7,2669.2,3.74639]
[1727216252405,4.20818155,2669.7,2669.0,4.50597]
[1727216252406,3.74603,2669.5,2669.0,4.50592]
[1727216252607,4.120883,2669.4,2668.8,3.74688]
[1727216253194,3.74637,2669.3,2668.7,4.50643]
[1727216253401,3.74637,2669.3,2668.8,3.74692]
[1727216253640,0.7867043,2669.3,2668.8,3.74691]
[1727216253793,0.7867043,2669.3,2668.8,7.49382]
[1727216254236,0.7867043,2669.3,2668.9,3.74685]
[1727216254719,0.55,2669.4,2668.9,3.74685]
[1727216254943,0.55,2669.4,2668.8,3.74691]
[1727216255105,0.55,2669.4,2669.0,3.74664]
[1727216255743,0.55,2669.4,2668.8,3.74692]
[1727216255744,0.8026,2669.3,2668.8,3.74692]
[1727216255950,0.55,2669.4,2669.0,3.74671]
[1727216256162,1.434485,2669.4,2668.8,3.74691]
[1727216256448,0.884485,2669.4,2669.1,3.7465]
[1727216256654,0.8026,2669.6,2669.1,3.7465]
[1727216256838,0.8026,2669.6,2669.3,3.74629]
[1727216257041,0.8026,2669.6,2669.1,3.7465]
[1727216257042,4.5485,2669.6,2669.1,3.7465]
[1727216257245,0.50108616,2669.5,2668.9,0.7593]
[1727216257578,3.74629,2669.4,2668.8,3.74692]
[1727216257716,3.74629,2669.4,2668.8,7.49384]
[1727216257917,5.00366386,2669.4,2668.8,3.74692]
[1727216258142,3.74633,2669.3,2668.8,3.74692]
[1727216258649,5.00361386,2669.4,2668.8,3.74692]
[1727216258950,0.50036139,2669.3,2668.8,3.74692]
[1727216259253,0.8239,2669.1,2668.6,3.74719]
[1727216259440,4.57051,2669.1,2668.6,3.74719]
[1727216259672,4.57051,2669.1,2668.6,7.49437]
[1727216259873,0.8239,2669.1,2668.7,3.74712]
[1727216260380,4.57015,2669.4,2668.9,3.74678]
[1727216260592,5.32255625,2669.4,2668.9,3.74678]
[1727216261277,7.38,2669.8,2668.4,3.7952602]
[1727216261278,4.56966,2669.7,2669.0,4.54152]
[1727216261446,4.56966,2669.7,2668.8,3.74692]
[1727216261447,3.74603,2669.5,2668.8,3.74692]
[1727216261788,3.74603,2669.5,2668.8,3.74696]
[1727216261789,3.7463,2669.3,2668.8,3.74696]
[1727216261972,0.37463,2669.2,2668.8,3.74696]
[1727216262294,3.74612,2669.5,2668.9,3.74676]
[1727216262295,3.74611,2669.5,2668.9,3.74676]
[1727216262592,0.55,2669.6,2668.6,0.7949]
[1727216262762,0.55,2669.6,2669.0,3.74666]
[1727216262961,3.74616,2669.4,2668.9,3.74684]
[1727216263166,0.429616,2669.4,2669.0,3.74663]
[1727216263877,0.429616,2669.4,2669.0,3.74662]
[1727216264612,0.429616,2669.4,2669.2,3.74644]
[1727216264890,0.55,2669.6,2669.2,3.74644]
[1727216265189,3.74616,2669.4,2668.9,3.74682]
[1727216265398,0.07554552,2669.3,2668.9,3.74682]
[1727216265687,0.8239,2669.2,2668.6,4.54213]
[1727216265887,3.82212552,2669.1,2668.6,4.54213]
[1727216266188,3.74672,2669.0,2668.6,4.54213]
[1727216266351,4.21133655,2669.0,2668.6,0.7949]
[1727216266863,0.46461655,2669.0,2668.6,3.74727]
[1727216267077,0.46461655,2669.0,2668.4,3.7952202]
[1727216267078,0.46461655,2669.0,2668.4,3.7951702]
[1727216267304,0.46461655,2669.0,2668.7,3.74705]
[1727216267515,0.8239,2669.2,2668.8,3.74699]
[1727216267742,5.38186355,2669.4,2668.9,3.74677]
[1727216268387,3.74632,2669.3,2668.8,3.74699]
[1727216269109,3.74644,2669.2,2668.8,3.74699]
[1727216269291,3.74632,2669.3,2668.6,3.74717]
[1727216269292,4.57141152,2669.1,2668.7,3.74713]
[1727216269487,3.74659,2669.1,2668.6,3.74717]
[1727216269687,4.29644,2669.2,2668.6,3.74717]
[1727216269882,4.176254,2669.1,2668.6,3.74717]
[1727216270084,4.176254,2669.1,2668.7,3.74713]
[1727216270385,4.176254,2669.1,2668.6,3.74718]
[1727216271101,0.429644,2669.1,2668.4,0.0477402]
[1727216271297,0.429644,2669.1,2668.5,3.74735]
[1727216271594,0.4726184,2669.0,2668.5,3.74728]
[1727216271793,4.57076,2668.9,2668.4,0.0477402]
[1727216271992,8.31772,2668.9,2668.4,0.0477402]
[1727216272179,0.87903384,2668.8,2668.4,0.0477402]
[1727216272615,0.87903384,2668.8,2668.5,3.7473]
[1727216272820,0.8239,2668.9,2668.5,3.7473]
[1727216274228,4.57076,2668.9,2668.4,3.7952102]
[1727216274451,0.8239,2668.9,2668.4,0.0477402]
[1727216274609,0.20767487,2668.8,2668.5,3.74729]
[1727216281150,0.20767487,2668.8,2668.5,3.74739]
[1727216281496,0.8239,2668.9,2668.7,3.74714]
[1727216281823,0.8239,2668.9,2668.5,3.74735]
[1727216281995,0.8239,2668.9,2668.6,3.74726]
[1727216282233,0.8239,2668.9,2668.5,3.74735]
[1727216282431,0.8239,2668.9,2668.5,7.49471]
[1727216282632,5.27020841,2668.9,2668.4,3.7952302]
[1727216282807,6.0504387,2668.9,2668.4,3.7952302]
[1727216283412,2.44377172,2668.8,2668.4,3.7952302]
[1727216283604,6.0504387,2668.9,2668.4,3.7952302]
[1727216283858,2.80755631,2668.8,2668.4,3.7952302]
[1727216283995,1.14401925,2668.8,2668.4,3.7952302]
[1727216284539,2.44490717,2668.7,2668.4,3.7952302]
[1727216284836,0.78023029,2668.9,2668.8,3.747]
[1727216285128,2.44476394,2668.9,2668.6,3.7472]
[1727216285314,0.66584333,2668.8,2668.6,3.7472]
[1727216285513,0.66584333,2668.8,2668.7,3.74714]
[1727216285514,0.78023029,2668.8,2668.7,3.74714]
[1727216285892,2.83566606,2668.9,2668.8,3.747]
[1727216285893,0.78023029,2668.9,2668.8,3.747]
[1727216286115,1.17034544,2669.0,2668.8,3.747]
[1727216286116,1.95057573,2669.0,2668.8,3.747]
[1727216286327,0.78023029,2669.2,2668.9,3.74686]
[1727216286491,3.22704679,2669.1,2668.5,0.7832]
[1727216286693,0.78488463,2668.8,2668.5,0.7832]
[1727216286894,1.45151876,2668.7,2668.5,0.7832]
[1727216287141,2.84404386,2668.6,2668.4,0.0477402]
[1727216287305,2.4517081,2668.5,2668.4,0.0477402]
[1727216287527,2.4517081,2668.5,2668.4,3.7953002]
[1727216287691,2.4517081,2668.5,2668.4,0.0477402]
[1727216288131,0.78499119,2668.5,2668.4,0.0477402]
[1727216288309,1.45162532,2668.5,2668.4,0.0477402]
[1727216288494,0.78499119,2668.5,2668.4,0.0477402]
[1727216288694,2.45314232,2668.5,2668.4,0.0477402]
[1727216288937,7.44747647,2668.5,2668.4,0.0477402]
[1727216289094,9.48239241,2668.5,2668.4,0.0477402]
[1727216289300,11.73163095,2668.5,2668.4,0.0477402]
[1727216289522,3.74837,2667.9,2667.4,3.74893]
[1727216289718,3.74837,2667.9,2667.5,3.74874]
[1727216289719,0.7856813,2667.7,2667.5,3.74874]
[1727216289923,1.45294175,2667.7,2667.5,3.74874]
[1727216290113,0.7856813,2667.7,2667.6,3.74868]
[1727216290440,0.7856813,2667.8,2667.5,3.74874]
[1727216290739,1.45264167,2667.8,2667.7,3.74854]
[1727216290908,0.7856813,2668.0,2667.8,3.7484]
[1727216291110,1.17852196,2668.1,2667.8,3.7484]
[1727216291111,0.7856813,2668.1,2668.0,3.74812]
[1727216291298,2.45298522,2668.1,2668.0,3.74812]
[1727216291501,1.17852196,2668.3,2668.1,3.74798]
[1727216291502,0.7856813,2668.2,2668.1,3.74798]
[1727216291844,0.7856813,2668.5,2668.2,4.52844]
[1727216292141,1.45008531,2668.5,2668.4,3.74756]
[1727216292346,0.66440401,2668.5,2668.4,3.74756]
[1727216292543,1.45002887,2668.6,2668.5,3.74742]
[1727216292701,1.45002887,2668.6,2668.2,0.7806]
[1727216292702,0.7856813,2668.7,2668.2,0.7806]
[1727216292897,0.7856813,2668.7,2668.4,3.74745]
[1727216293102,1.17852196,2668.8,2668.5,3.74742]
[1727216293103,2.44657891,2668.6,2668.5,3.74742]
[1727216293332,1.78221987,2668.6,2668.5,3.74742]
[1727216293640,1.78221987,2668.6,2668.2,4.52843]
[1727216293641,1.66089761,2668.6,2668.2,4.52843]
[1727216293845,2.44657891,2668.5,2668.2,4.52843]
[1727216294002,0.7856813,2668.5,2668.3,3.74756]
[1727216294205,1.84291781,2668.7,2668.3,7.52537247]
[1727216294408,0.8097,2668.8,2668.7,3.74714]
[1727216294638,0.7856813,2669.4,2669.3,3.7463]
[1727216294844,0.7856813,2669.4,2669.2,3.74643]
[1727216294845,2.44622228,2669.4,2669.2,3.74643]
[1727216295003,1.78202506,2669.3,2669.2,3.74643]
[1727216295201,1.44987852,2669.3,2669.2,3.74643]
[1727216295437,1.66054098,2669.3,2669.2,3.74643]
[1727216295739,2.44622228,2669.3,2669.2,3.74643]
[1727216295900,0.7856813,2669.3,2669.2,3.74643]
[1727216296099,1.44987852,2669.3,2669.2,3.74643]
[1727216296529,1.44987852,2669.3,2669.0,3.74666]
[1727216296731,0.66419722,2669.2,2669.0,3.74662]
[1727216297402,1.14815572,2669.3,2669.0,3.74662]
[1727216297602,0.66505302,2669.2,2669.0,3.74662]
[1727216298040,0.66505302,2669.2,2669.1,3.74658]
[1727216298247,0.7856813,2669.3,2669.2,3.74644]
[1727216298400,1.57136261,2669.6,2669.4,3.74616]
[1727216298401,0.7856813,2669.6,2669.4,3.74616]
[1727216298756,0.66497832,2669.6,2669.5,3.74601]
[1727216299032,1.17852196,2669.8,2669.6,3.74587]
[1727216299231,1.66239493,2669.7,2669.6,3.74587]
[1727216299452,1.57136261,2669.9,2669.6,3.74587]
[1727216299453,1.96328029,2669.9,2669.6,3.74587]
[1727216299736,0.78475833,2670.0,2669.9,4.52605]
[1727216299936,0.78475833,2670.1,2670.0,3.74531]
[1727216300126,1.44945509,2670.1,2670.0,3.74531]
[1727216300438,0.78475833,2670.2,2670.0,3.74531]
[1727216300612,0.78475833,2670.2,2670.1,3.74517]
[1727216300801,2.44559303,2670.2,2670.1,3.74517]
[1727216301024,2.44559303,2670.2,2669.7,3.74564]
[1727216301340,5.70868029,2670.0,2669.4,3.74611]
[1727216301509,6.26659855,2669.9,2669.4,3.74611]
[1727216301711,2.44559303,2669.8,2669.4,3.74611]
[1727216301903,0.78475833,2669.8,2669.4,3.74611]
[1727216302239,0.78475833,2669.8,2669.5,3.74601]
[1727216302740,3.0900707,2669.8,2669.5,7.49194]
[1727216302940,0.64484751,2669.8,2669.5,3.74593]
[1727216303236,1.42960584,2669.8,2669.5,3.74593]
[1727216303404,0.64484751,2669.8,2669.5,3.74593]
[1727216303600,3.08968611,2669.8,2669.3,3.74621]
[1727216303799,0.31652316,2669.7,2669.3,7.49243]
[1727216304035,0.31652316,2669.7,2669.4,3.74613]
[1727216304541,0.64484751,2669.8,2669.5,3.74598]
[1727216304879,1.42960584,2669.8,2669.5,3.74598]
[1727216305167,1.42960584,2669.8,2669.1,0.7806]
[1727216305168,0.66392199,2669.7,2669.1,0.7806]
[1727216305381,1.59445833,2669.6,2669.2,3.74633]
[1727216305534,0.66392199,2669.5,2669.2,3.74633]
[1727216305734,0.22583803,2669.4,2669.2,3.74633]
[1727216306880,0.22583803,2669.4,2669.1,3.74658]
[1727216307057,1.01059636,2669.4,2669.1,3.74658]
[1727216307445,1.01059636,2669.4,2669.0,3.74665]
[1727216307646,0.6639528,2669.3,2669.0,3.74665]
[1727216307849,0.28530711,2669.3,2669.0,3.74665]
[1727216308061,1.01059636,2669.4,2669.0,7.49329]
[1727216308250,0.22583803,2669.4,2669.0,7.49329]
[1727216308555,0.66393814,2669.3,2669.0,3.74664]
[1727216308777,0.66393814,2669.3,2669.0,7.49328]
[1727216308778,0.24592928,2669.3,2669.0,7.49328]
[1727216309069,0.24592928,2669.3,2669.0,3.74663]
[1727216309273,0.86030385,2669.2,2668.8,3.7469]
[1727216309479,1.65990338,2669.1,2668.8,3.7469]
[1727216309816,1.65990338,2669.1,2668.5,0.7806]
[1727216309817,0.78475833,2669.2,2668.5,0.7806]
[1727216310076,0.78475833,2669.7,2669.4,3.74608]
[1727216310278,0.78475833,2669.7,2669.5,3.74601]
[1727216310487,0.66386569,2669.7,2669.6,3.74587]
[1727216310783,0.78475833,2669.8,2669.7,3.74573]
[1727216311073,2.09702762,2669.8,2669.7,3.74573]
[1727216311279,2.76081909,2669.8,2669.7,3.74573]
[1727216311573,2.76081909,2669.8,2669.5,3.74601]
[1727216311574,2.76081909,2669.8,2669.5,3.74592]
[1727216311780,0.78348636,2669.6,2669.2,3.74636]
[1727216311977,0.4981187,2669.5,2669.2,3.74636]
[1727216312183,1.28168724,2669.5,2669.2,3.74636]
[1727216312424,1.28168724,2669.5,2669.1,3.74657]
[1727216312425,2.44305378,2669.4,2669.1,3.74657]
[1727216312581,0.66379147,2669.3,2669.1,3.74657]
[1727216312774,0.78356854,2669.4,2669.1,3.74657]
[1727216312976,0.24602092,2669.3,2669.1,3.74657]
[1727216314473,1.02958946,2669.3,2669.1,3.74645]
[1727216314675,0.66380003,2669.2,2669.1,3.74645]
[1727216314899,0.78356854,2669.3,2669.0,3.74662]
[1727216315176,0.78356854,2669.4,2669.2,3.74644]
[1727216315373,1.28168724,2669.5,2669.3,3.7463]
[1727216315625,0.78356854,2669.5,2669.3,3.7463]
[1727216315777,1.44732391,2669.6,2669.4,3.74616]
[1727216316127,0.66375332,2669.5,2669.4,3.74616]
[1727216316298,1.65938237,2669.5,2669.4,3.74616]
[1727216316714,0.66375332,2669.5,2669.4,3.74616]
[1727216316880,0.78356854,2669.7,2669.5,3.7459]
[1727216317099,0.78356854,2669.7,2669.5,3.74601]
[1727216317100,0.78356854,2669.6,2669.5,3.74601]
[1727216317304,2.4428582,2669.6,2669.5,3.74601]
[1727216317469,1.57136261,2669.8,2669.7,3.74573]
[1727216317470,0.78356854,2669.8,2669.7,3.74573]
[1727216317689,0.78356854,2669.8,2669.6,3.74587]
[1727216317690,2.0106672,2669.8,2669.6,3.74587]
[1727216317877,0.66366751,2669.7,2669.6,3.74587]
[1727216318215,0.66366751,2669.7,2669.3,3.74623]
[1727216318216,1.17852196,2669.7,2669.3,3.74623]
[1727216318414,0.78352664,2669.5,2669.3,3.74623]
[1727216318626,0.78352664,2669.5,2669.1,3.74648]
[1727216318627,0.8097,2669.4,2669.1,3.74648]
[1727216318910,0.78352664,2669.3,2669.1,3.74648]
[1727216319276,0.78352664,2669.2,2669.1,3.74648]
[1727216319473,0.78352664,2669.3,2668.9,7.49351]
[1727216319696,0.78352664,2669.2,2669.0,3.74662]
[1727216319952,0.78352664,2669.2,2668.9,3.74675]
[1727216320104,2.44313114,2669.2,2668.9,3.74675]
[1727216320327,0.66388738,2669.1,2668.9,3.74675]
[1727216320522,0.78352664,2669.2,2668.9,3.74675]
[1727216320690,1.64464454,2669.2,2668.9,3.74675]
[1727216321023,0.8611179,2669.2,2668.9,3.74675]
[1727216321180,0.66389047,2669.1,2669.0,3.74665]
[1727216321517,0.78352664,2669.2,2669.0,3.74665]
[1727216321809,2.44335934,2669.2,2669.0,3.74665]
[1727216322008,1.30542447,2669.3,2668.7,4.52772]
[1727216322176,1.30542447,2669.3,2669.2,3.74644]
[1727216322177,0.78352664,2669.3,2669.2,3.74644]
[1727216322376,0.78352664,2669.5,2669.4,3.74616]
[1727216322576,2.44465162,2669.5,2669.4,3.74616]
[1727216322771,3.04742524,2669.5,2669.4,3.74616]
[1727216323001,2.44465162,2669.5,2669.4,3.74616]
[1727216323281,0.78352664,2669.7,2669.5,3.74601]
[1727216323705,2.44471543,2669.6,2669.5,3.74601]
[1727216323879,0.78367377,2669.6,2669.5,3.74601]
[1727216324091,2.13633377,2669.6,2669.4,3.74614]
[1727216324304,2.44473769,2669.5,2669.4,3.74614]
[1727216324693,6.19089082,2669.5,2669.0,3.74662]
[1727216325017,0.7837769,2669.2,2669.1,3.74658]
[1727216325435,1.78054073,2669.2,2669.1,3.74658]
[1727216326285,1.66127305,2669.2,2669.1,3.74658]
[1727216326483,0.7837769,2669.2,2669.1,3.74658]
[1727216326685,1.78075624,2669.3,2669.1,3.74658]
[1727216327061,0.7837769,2669.3,2669.2,3.74644]
[1727216327180,0.66526565,2669.3,2669.2,3.74644]
[1727216327411,0.7837769,2669.4,2669.3,3.7463]
[1727216327583,1.17852196,2669.4,2669.3,3.7463]
[1727216327994,1.66327823,2669.4,2669.2,3.74643]
[1727216328185,1.75510424,2669.4,2669.3,3.7463]
[1727216328386,2.42044014,2669.4,2669.3,3.7463]
[1727216328625,3.418444,2669.4,2669.3,3.7463]
[1727216328925,2.23992204,2669.4,2669.3,3.7463]
[1727216329166,3.418444,2669.4,2669.3,3.7463]
[1727216329285,2.84186172,2669.4,2669.3,3.7463]
[1727216329485,2.44739802,2669.4,2669.3,3.7463]
[1727216329724,1.78206212,2669.4,2669.3,3.7463]
[1727216329938,0.99800386,2669.4,2669.3,3.7463]
[1727216330289,1.66333976,2669.4,2669.3,3.7463]
[1727216330621,2.42044629,2669.4,2669.3,3.7463]
[1727216330934,3.41845015,2669.4,2669.2,3.74643]
[1727216331093,2.44750446,2669.3,2669.2,3.74643]
[1727216331309,1.84385786,2669.3,2668.9,3.74674]
[1727216331521,0.78427407,2669.1,2668.9,3.74674]
[1727216331728,0.78427407,2669.0,2668.9,3.74674]
[1727216332203,3.74694,2668.9,2668.4,3.74746]
[1727216332409,0.784308,2668.7,2668.2,7.49549]
[1727216332611,0.784308,2668.6,2668.2,7.49549]
[1727216332811,2.44806113,2668.5,2668.3,3.74766]
[1727216333046,1.14675522,2668.5,2668.2,3.74773]
[1727216333411,0.66567019,2668.4,2668.2,7.49549]
[1727216333609,0.66567019,2668.4,2668.3,3.7477]
[1727216333942,0.66567058,2668.4,2668.3,3.7477]
[1727216334309,1.1764111,2668.6,2668.4,3.74747]
[1727216334310,0.784308,2668.6,2668.4,3.74747]
[1727216334627,0.784308,2668.6,2668.4,7.49493]
[1727216334826,0.784308,2668.6,2668.4,3.74746]
[1727216335038,0.784308,2668.6,2668.4,7.49492]
[1727216335350,2.44834277,2668.5,2668.4,7.49492]
[1727216335647,0.784308,2668.6,2668.5,3.74739]
[1727216336150,2.44853801,2668.6,2668.5,3.74739]
[1727216336302,1.8421031,2668.6,2668.4,3.74746]
[1727216336511,2.44898692,2668.5,2668.2,7.4955]
[1727216336711,2.44898692,2668.5,2668.3,3.74761]
[1727216337016,2.44898692,2668.4,2668.3,3.74761]
[1727216337223,1.45044891,2668.4,2668.3,3.74761]
[1727216338153,2.44898692,2668.4,2668.3,3.74761]
[1727216338317,1.1764111,2668.6,2668.4,3.74756]
[1727216338507,1.45086615,2668.5,2668.4,3.74756]
[1727216339071,1.6650933,2668.5,2668.4,3.74756]
[1727216339273,0.66603732,2668.5,2668.4,3.74756]
[1727216339475,1.45079351,2668.5,2668.4,3.74756]
[1727216339779,3.36126672,2668.5,2668.2,3.74782]
[1727216339940,3.6730044,2668.4,2668.1,3.74797]
[1727216340139,0.78484003,2668.2,2668.1,3.74797]
[1727216340363,1.84244842,2668.2,2668.0,3.74804]
[1727216340673,0.78482507,2668.1,2668.0,3.74804]
[1727216341177,2.44937022,2668.1,2668.0,3.74804]
[1727216341471,1.66454515,2668.1,2668.0,3.74804]
[1727216341681,0.99872709,2668.1,2667.8,3.7786708]
[1727216341866,2.69367485,2668.0,2667.8,3.7786708]
[1727216342069,0.66555677,2667.9,2667.8,3.7786708]
[1727216342380,1.66396328,2667.9,2667.8,0.0303408]
[1727216342540,0.66555677,2667.9,2667.8,3.7787408]
[1727216342872,0.78482507,2668.0,2667.8,3.7787408]
[1727216343454,0.26263849,2668.0,2667.8,3.7787408]
[1727216343657,1.04746356,2668.0,2667.8,0.0303408]
[1727216343865,0.66492736,2667.9,2667.8,0.0303408]
[1727216344341,1.04746356,2668.0,2667.8,0.0303408]
[1727216344536,0.26263849,2668.0,2667.8,0.0303408]
[1727216344968,1.04746356,2668.0,2667.8,0.0303408]
[1727216345153,0.64571907,2667.9,2667.8,0.0303408]
[1727216345584,6.63584966,2667.9,2667.8,0.0303408]
[1727216345786,8.68873055,2667.9,2667.8,0.0303408]
[1727216346074,10.33728687,2667.9,2667.8,0.0303408]
[1727216346483,3.74921,2667.3,2667.0,0.0388112]
[1727216346691,1.3815,2667.2,2667.0,0.0388112]
[1727216347355,4.37493552,2667.1,2667.0,0.0388112]
[1727216347558,6.0350433,2667.1,2667.0,0.0388112]
[1727216347891,8.93001623,2667.1,2667.0,0.0388112]
[1727216348043,11.52760285,2667.1,2667.0,0.0388112]
[1727216348546,9.806187,2667.1,2667.0,0.0388112]
[1727216349468,9.41441727,2667.1,2667.0,0.0388112]
[1727216349869,9.41441727,2667.1,2667.0,0.08686177]
[1727216350098,9.41441727,2667.1,2667.0,0.0388112]
[1727216350254,9.41441727,2667.1,2667.0,0.08686177]
[1727216350578,7.63592353,2667.1,2667.0,0.0388112]
[1727216350957,7.63592883,2667.1,2667.0,0.08685133]
[1727216351277,7.63592883,2667.1,2667.0,0.0388112]
[1727216351488,6.97252214,2667.1,2667.0,0.08685133]
[1727216351646,6.97252214,2667.1,2667.0,0.0388112]
[1727216351979,7.63555891,2667.1,2667.0,0.0388112]
[1727216352357,6.97252214,2667.1,2667.0,0.0388112]
[1727216352557,3.22313214,2667.1,2667.0,0.0388112]
[1727216352752,1.3815,2667.1,2667.0,0.0388112]
[1727216352965,5.13089,2667.1,2667.0,0.08686177]
[1727216353167,5.13089,2667.1,2667.0,0.0388112]
[1727216353373,6.018905,2667.1,2667.0,0.0388112]
[1727216353769,6.018905,2667.1,2667.0,0.08686177]
[1727216353978,6.018905,2667.1,2667.0,0.0388112]
[1727216354491,6.018905,2667.1,2667.0,0.08683569]
[1727216354658,6.018905,2667.1,2667.0,0.0388112]
[1727216355193,6.018905,2667.1,2667.0,0.08683569]
[1727216355351,6.018905,2667.1,2667.0,0.0388112]
[1727216355747,6.018905,2667.1,2667.0,0.08686698]
[1727216355967,6.018905,2667.1,2667.0,0.0388112]
[1727216356172,6.018905,2667.1,2667.0,0.08686698]
[1727216356383,6.018905,2667.1,2667.0,0.0388112]
[1727216356595,6.018905,2667.1,2667.0,0.08686698]
[1727216356751,6.018905,2667.1,2667.0,0.0388112]
[1727216356960,6.018905,2667.1,2667.0,0.09482149]
[1727216357179,6.018905,2667.1,2667.0,0.0388112]
[1727216357479,6.018905,2667.1,2667.0,0.09486976]
[1727216357668,6.018905,2667.1,2667.0,0.0388112]
[1727216357867,6.018905,2667.1,2667.0,0.09486976]
[1727216358083,6.018905,2667.1,2667.0,0.0388112]
[1727216358244,6.018905,2667.1,2667.0,0.09486976]
[1727216358449,6.018905,2667.1,2667.0,0.0388112]
[1727216358959,6.018905,2667.1,2667.0,0.09490158]
[1727216359295,6.018905,2667.1,2667.0,0.0388112]
[1727216360377,9.10580224,2667.1,2667.0,0.0388112]
[1727216361594,9.10580224,2667.1,2666.3,3.75048]
[1727216361595,3.74991,2666.8,2666.3,3.75048]
[1727216361908,0.55,2666.7,2666.3,3.75048]
[1727216362107,0.55,2666.7,2666.4,0.05683401]
[1727216362684,0.55,2666.7,2666.4,3.80720401]
[1727216362869,1.28550622,2667.0,2666.7,3.74992]
[1727216363370,3.74967,2666.9,2666.8,0.05645916]
[1727216363765,3.74967,2666.9,2666.4,3.75035]
[1727216364069,3.74967,2666.9,2666.8,0.05635732]